Cogmind - Beta 13 @@@ ROGUE MODE // 2024.04.17 @ 18:30:33 Player: Conlarando Result: Destroyed by 37-H0Y(R) with Subdweller Shrapnel Launcher Performance ------------- Evolutions (0) 0 Regions Visited (3) 600 Robots Destroyed (30) 150 Value Destroyed (709) 709 Prototype IDs (10) 200 Alien Tech Used (0) 0 Bonus (38) 38 TOTAL SCORE: 1697 Bonus ------- Follower Combat Kills 200 Friendly Fire -162 Cogmind --------- Core Integrity 0/250 Matter 134/300 Energy 121/125 System Corruption 0% Temperature Cool (9) Movement Walking (340) Ox3 Location -10/Subcaves Parts ------- > --- POWER (1) -------- Light Ion Engine > --- PROPULSION (2) --- Cargo Legs > --- UTILITY (2) ------ Humpback > --- WEAPON (2) ------- Rocket Launcher > --- INVENTORY (35) --- Light Ion Engine Light Treads Light Treads Improved Treads Improved Treads Improved Treads Spiked Treads Flight Unit Flight Unit Flight Unit Heat Sink Small Storage Unit Cargo Storage Unit Light Armor Plating Light Armor Plating Light Armor Plating Light Armor Plating Light Armor Plating Light Armor Plating Light Armor Plating Light Armor Plating Light Armor Plating Medium Armor Plating Medium Armor Plating Medium Armor Plating Hacking Suite EM Pulse Gun Light Assault Rifle Light Assault Rifle Light Assault Rifle Peak State ------------ > --- POWER ------------ Light Ion Engine > --- PROPULSION ------- Cargo Legs > --- UTILITY ---------- Humpback Light Armor Plating Light Armor Plating > --- WEAPON ----------- Light Assault Rifle Rocket Launcher > --- INVENTORY -------- Light Ion Engine Light Treads Light Treads Improved Treads Improved Treads Improved Treads Spiked Treads Flight Unit Flight Unit Flight Unit Heat Sink Small Storage Unit Cargo Storage Unit Light Armor Plating Light Armor Plating Light Armor Plating Light Armor Plating Light Armor Plating Light Armor Plating Light Armor Plating Light Armor Plating Light Armor Plating Medium Armor Plating Medium Armor Plating Medium Armor Plating Hacking Suite EM Pulse Gun Light Assault Rifle Light Assault Rifle Light Assault Rifle [Rating: 28] Favorites ----------- Power Ion Engine Engine Ion Engine Propulsion Light Treads Treads Light Treads Leg Cargo Legs Utility Cargo Storage Unit Device Sensor Array Storage Cargo Storage Unit Protection Light Armor Plating Weapon Light Assault Rifle Ballistic Gun Light Assault Rifle Launcher Rocket Launcher Build | -11 -10 -10 -10 ------- Run | Yrd Mat Min Sub Slots Evolved . | . . . . Power . | . . . . Propulsion . | . . . . Utility . | . . . . Weapon . | . . . . Parts Attached 21 | 6 8 1 6 Power 3 | 1 . . 2 Engine 3 | 1 . . 2 Core . | . . . . Reactor . | . . . . Propulsion 6 | 2 3 . 1 Treads 5 | 2 3 . . Leg 1 | . . . 1 Wheel . | . . . . Hover . | . . . . Flight . | . . . . Utility 9 | 1 5 . 3 Device 1 | . 1 . . Storage 5 | 1 3 . 1 Processor . | . . . . Hackware . | . . . . Protection 3 | . 1 . 2 Artifact . | . . . . Weapon 3 | 2 . 1 . Energy Gun . | . . . . Energy Cannon . | . . . . Ballistic Gun 2 | 2 . . . Ballistic Cannon . | . . . . Launcher 1 | . . 1 . Special Weapon . | . . . . Impact Weapon . | . . . . Slashing Weapon . | . . . . Piercing Weapon . | . . . . Special Melee Weapon . | . . . . Unidentified Prototypes . | . . . . Parts Lost 3 | . . . 3 Power . | . . . . Propulsion . | . . . . Utility 2 | . . . 2 Weapon 1 | . . . 1 Highest Loss Streak 3 | . . . 3 To Critical Strikes . | . . . . Average Slot Usage (%) 84 | . 90 85 83 Engine 13 | . 14 14 13 Treads 25 | . 28 28 24 Storage 13 | . 14 14 13 Protection 1 | . 1 . 2 Ballistic Gun 16 | . 28 15 13 Launcher 11 | . . 12 13 Naked Turns . | . . . . Heaviest Build 214 | 12 147 150 214 Greatest Support 55 | 40 46 43 55 Greatest Overweight (x) 4 | 3 3 3 4 Average Overweight (x) 2 | . 1 3 3 Largest Inventory Capacity 35 | 8 30 30 35 Average Capacity 31 | 7 24 30 33 Most Carried 33 | 1 23 29 33 Average Carried 27 | . 14 28 30 Final Capacity 35 | 8 30 30 35 Final Carried 31 | 1 23 29 31 Class Distribution -------------------- 94% | Hauler-Mutant 5% | Mutant Dominant Class ---------------- Hauler-Mutant | -10/Materials Hauler-Mutant | -10/Mines Hauler-Mutant | -10/Subcaves Resources | -11 -10 -10 -10 ----------- Run | Yrd Mat Min Sub Matter Collected 780 | 260 237 37 246 Remotely . | . . . . Salvage Created 878 | . 594 77 207 Parts 57 | . 33 3 21 Haulers Intercepted 1 | . 1 . . Recyclers Shooed 6 | . 6 . . Parts Field Recycled . | . . . . Retrieved Matter . | . . . . Parts Self-Destructed 8 | . . . 8 Prevented . | . . . . Kills | -11 -10 -10 -10 ------- Run | Yrd Mat Min Sub Combat Hostiles Destroyed 19 | . 9 2 8 Guns 9 | . 9 . . AOE 10 | . . 2 8 Classes Destroyed 11 | . 8 2 1 Worker 2 | . 2 . . Builder 1 | . 1 . . Tunneler 1 | . . 1 . Hauler 1 | . 1 . . Recycler 3 | . 2 1 . Operator 1 | . 1 . . Watcher 1 | . 1 . . Swarmer 4 | . 3 1 . Grunt 6 | . 6 . . Demolisher 1 | . . 1 . Subdweller 8 | . . . 8 Thug 1 | . . . 1 Best Kill Streak 7 | . 7 2 3 Combat Bots Only 3 | . 3 2 3 Max Kills in Single Turn 2 | . 1 2 1 Gunslinging . | . . . . Exploded 2 | . . 2 1 Melee . | . . . . Uniques/NPCs Destroyed . | . . . . Combat | -11 -10 -10 -10 -------- Run | Yrd Mat Min Sub Hostile Shots Fired 69 | . 38 2 29 Missed 16 | . 8 . 8 Damage Taken 1281 | . 321 33 927 Core 265 | . 82 18 165 Absorbed by Shields . | . . . . Core Remaining (%) 100 | 100 . . . Volleys Fired 117 | . 81 4 32 Largest 2 | . 2 2 2 Hottest 53 | . 40 53 53 Shots Fired 216 | . 162 7 47 Gun 182 | . 162 5 15 Cannon . | . . . . Launcher 34 | . . 2 32 Special . | . . . . Kinetic 182 | . 162 5 15 Thermal . | . . . . Explosive 34 | . . 2 32 Electromagnetic . | . . . . Robot Hit Streak 11 | . 11 4 6 Robot Miss Streak 6 | . 6 1 1 Penetration Max . | . . . . Secondary Targets 1 | . 1 . . Max Gunslinging Chain 1 | . 1 . . Shots Hit Robots 126 | . 98 4 24 Core Hits 70 | . 46 6 18 Critical Kills 1 | . 1 . . Critical Parts Destroyed 1 | . 1 . . Critical Strikes 2 | . 2 . . Destroy 2 | . 2 . . Melee Attacks . | . . . . Impact . | . . . . Slashing . | . . . . Piercing . | . . . . Sneak Attacks . | . . . . Combat Hostiles . | . . . . Follow-up Attacks . | . . . . Damage Inflicted 2369 | . 791 114 1464 Guns 824 | . 757 18 49 Cannons . | . . . . Explosions 1493 | . . 78 1415 Melee . | . . . . Ramming 52 | . 34 18 . Kinetic 824 | . 757 18 49 Thermal . | . . . . Explosive 1493 | . . 78 1415 Electromagnetic . | . . . . Impact . | . . . . Slashing . | . . . . Piercing . | . . . . Highest Corruption . | . . . . Average Corruption . | . . . . Corruption Purged . | . . . . Corruption Blocked . | . . . . Overload Shots . | . . . . Overflow Damage . | . . . . Projectiles . | . . . . Explosions . | . . . . Melee . | . . . . Knockbacks 2 | . 1 1 . Impact 2 | . 1 1 . Kinetic . | . . . . Secondary . | . . . . Self-Inflicted Damage 179 | . . . 179 Shots 7 | . . . 7 Rammed 3 | . 2 1 . Targets Rammed 6 | . 3 3 . Kicked . | . . . . Crushed 3 | . 1 2 . Highest Temperature 18 | . 18 12 . Average Temperature 9 | . 9 9 . Received Heat Transfer 141 | . 123 . 18 Siege Activations . | . . . . Robots Corrupted . | . . . . Combat Hostiles . | . . . . Parts Fried . | . . . . Impact Corruptions . | . . . . Robots Melted . | . . . . Combat Hostiles . | . . . . Parts Melted . | . . . . Heat Transferred . | . . . . Parts Sabotaged . | . . . . Parts Stolen . | . . . . Parts Stripped . | . . . . Power Chain Reactions . | . . . . Alert | -11 -10 -10 -10 ------- Run | Yrd Mat Min Sub Peak Influence 206 | . 206 129 . Initial . | . . . . Average 39 | . 45 35 . Maximum Alert Level 1 | . 1 . . Low Security (%) 98 | 100 96 100 . Level 1 1 | . 3 . . Level 2 . | . . . . Level 3 . | . . . . Level 4 . | . . . . Level 5 . | . . . . High Security . | . . . . Max Security . | . . . . Squads Dispatched 4 | . 2 2 . Investigation 3 | . 2 1 . Extermination . | . . . . Reinforcement . | . . . . Assault 1 | . . 1 . Garrison . | . . . . Intercept . | . . . . Searches Triggered . | . . . . Construction Impeded . | . . . . Haulers Reinforced . | . . . . Active Scanning Responses . | . . . . Cargo Convoy Interrupts . | . . . . Stealth | -11 -10 -10 -10 --------- Run | Yrd Mat Min Sub Distress Signals . | . . . . Communications Jammed . | . . . . Distress Signals . | . . . . Times Spotted 50 | . 29 8 13 Peak Tracking Total 4 | . 4 3 3 Tactical Retreats 3 | . 2 1 . Traps | -11 -10 -10 -10 ------- Run | Yrd Mat Min Sub Traps Triggered 1 | . 1 . . Indirectly . | . . . . Trap Hack Attempts . | . . . . Triggered . | . . . . Disarmed . | . . . . Reprogrammed . | . . . . Reused . | . . . . Traps Extracted . | . . . . Installed . | . . . . Triggered 2 | . . . 2 Machines | -11 -10 -10 -10 ---------- Run | Yrd Mat Min Sub Machines Disabled 3 | . . . 3 Max in Single Turn 3 | . . . 3 Machines Repaired . | . . . . Machines Dismantled . | . . . . Machines Sabotaged . | . . . . Overloaded Fab Kills . | . . . . Hacking | -11 -10 -10 -10 --------- Run | Yrd Mat Min Sub Machines Accessed 5 | . 2 1 2 Terminals 2 | . 1 1 . Fabricators . | . . . . Repair Stations . | . . . . Recycling Units 1 | . 1 . . Scanalyzers . | . . . . Garrison Access . | . . . . Total Hacks 14 | . 7 4 3 Successful 8 | . 4 1 3 Failed 6 | . 3 3 . Catastrophic . | . . . . Database Lockouts . | . . . . Manual 7 | . 2 4 1 Terminals 8 | . 4 4 . Fabricators . | . . . . Repair Stations . | . . . . Recycling Units 3 | . 3 . . Scanalyzers . | . . . . Garrison Access . | . . . . Terminal Hacks 7 | . 3 1 3 Record 2 | . . . 2 Part Schematic 2 | . 2 . . Zone Layout 2 | . 1 1 . Derelict Proto ID Bank 1 | . . . 1 Fabricator Hacks . | . . . . Repair Station Hacks . | . . . . Recycling Unit Hacks 1 | . 1 . . Retrieve Components 1 | . 1 . . Scanalyzer . | . . . . Garrison Access Hacks . | . . . . Unauthorized Hacks . | . . . . Terminals . | . . . . Fabricators . | . . . . Repair Stations . | . . . . Recycling Units . | . . . . Scanalyzers . | . . . . Garrison Access . | . . . . Data Cores Recovered . | . . . . Used . | . . . . Hacking Detections 3 | . 2 1 . Full Trace Events 3 | . 2 1 . Feedback Events . | . . . . Feedback Blocked . | . . . . Robot Schematics Acquired . | . . . . Robots Built . | . . . . Authchips . | . . . . Time . | . . . . Total Robot Build Rating . | . . . . Part Schematics Acquired 2 | . 2 . . Parts Built . | . . . . Authchips . | . . . . Time . | . . . . Total Part Build Rating . | . . . . Parts Repaired . | . . . . Time . | . . . . Parts Recycled . | . . . . Recycled Matter . | . . . . Retrieved Matter . | . . . . Retrieved Components 10 | . 10 . . Parts Scanalyzed . | . . . . Part Schematics Acquired . | . . . . Parts Damaged . | . . . . Bothacking | -11 -10 -10 -10 ------------ Run | Yrd Mat Min Sub Used RIF Installer . | . . . . Robots Hacked . | . . . . Non-combat . | . . . . Combat . | . . . . Robot Hacks Applied . | . . . . Relay Couplers Released . | . . . . Fabnet Peak Effective % . | . . . . Robots Rewired . | . . . . Allies Hacked . | . . . . Hacks Repelled . | . . . . Allies | -11 -10 -10 -10 -------- Run | Yrd Mat Min Sub Total Allies 3 | . . 3 . Largest Group 2 | . . 2 1 Highest-Rated Group 39 | . . 39 31 Highest-Rated Ally 31 | . . 31 31 Total Orders . | . . . . Ally Attacks 30 | . . 22 8 Total Damage 455 | . . 326 129 Kills 11 | . . 10 1 Allies Corrupted . | . . . . Allies Melted . | . . . . Intel | -11 -10 -10 -10 ------- Run | Yrd Mat Min Sub Robot Analysis Total . | . . . . Derelict Logs Recovered 2 | . . 1 1 Drone Launches . | . . . . Drone Recoveries . | . . . . Exploration | -11 -10 -10 -10 ------------- Run | Yrd Mat Min Sub Turns Passed 15613 | 62 2230 3600 9721 Spaces Moved 3836 | 35 705 875 2221 Core 5 | 5 . . . Treads 3467 | 30 705 875 1857 Legs 364 | . . . 364 Wheels . | . . . . Hover . | . . . . Flight . | . . . . Fastest Speed 50 | 50 160 400 340 Average Speed 390 | 151 270 400 427 Slowest Speed 480 | 200 400 400 480 Overloaded Moves . | . . . . Propulsion Burnouts . | . . . . Robots Hopped . | . . . . Cave-ins Triggered . | . . . . Exploration Rate (%) 63 | 4 75 101 74 Regions Visited 3 Branch Regions 2 Pre-discovered Areas 1 | . . . 1 Known Exits Taken . | . . . . Unknown Exits Taken 3 | 1 1 1 . Scrap Searched 10 | . . 1 9 Spaces Dug 19 | . . . 19 Terrain Destroyed 215 | . . 14 201 Melee . | . . . . Projectile . | . . . . AOE 215 | . . 14 201 Terrain Rammed . | . . . . Walls Destroyed . | . . . . Machines Disabled . | . . . . Actions | -11 -10 -10 -10 --------- Run | Yrd Mat Min Sub Total 4301 | 41 899 962 2399 Wait 225 | . 49 74 102 Move 3833 | 34 704 874 2221 Hop . | . . . . Pick Up 76 | 1 39 6 30 Fast Attach 12 | 6 5 . 1 Attach 6 | . 2 . 4 Detach 5 | . 3 . 2 Swap 3 | . 1 1 1 Drop 17 | . 12 . 5 Fire 117 | . 81 4 32 Melee . | . . . . Ram . | . . . . Kick . | . . . . Crush 6 | . 3 3 . Escape Stasis . | . . . . Rewire 1 | . . . 1 Trap . | . . . . Miscellaneous . | . . . . Route ------- -11/Scrapyard -10/Materials (discovered 3 exits: [*Mat x2] / *Min) -10/Mines (discovered 3 exits: [*Mat x2] / *Sub) -10/Subcaves History --------- Turn | Location | Event 20 | -11/Scrapyard | Discovered new exit (range 15) 63 | -11/Scrapyard | Entered Materials 300 | -10/Materials | Build established: Mutant 775 | -10/Materials | Discovered new exit (range 5) 863 | -10/Materials | Derelicts attacked the area 1177 | -10/Materials | Build established: Hauler-Mutant 2117 | -10/Materials | Discovered new exit (range 4) 2241 | -10/Materials | Discovered new exit (range 14) 2293 | -10/Materials | Entered Mines 2305 | -10/Mines | Discovered new exit (range 8) 2386 | -10/Mines | Discovered new exit (range 5) 2393 | -10/Mines | Received a Rocket Launcher from a helpful Derelict 2792 | -10/Mines | Assembled infested the area 3216 | -10/Mines | Learned Materials emergency access door positions 3861 | -10/Mines | Discovered new exit (range 5) 4366 | -10/Mines | Met a Derelict testing a Signal Generator 5893 | -10/Mines | Entered Subcaves 5893 | -10/Subcaves | Accompanied by 1 ally 6282 | -10/Subcaves | Shifting Twisted Machinery released Spk. Treads 6327 | -10/Subcaves | Shifting Twisted Machinery released Riot Gun 6330 | -10/Subcaves | Learned location of Zion (-7) 7800 | -10/Subcaves | Visited Clippyterm 7812 | -10/Subcaves | Learned Research security intel 7874 | -10/Subcaves | Shifting Twisted Machinery released Battle Cannon 7982 | -10/Subcaves | Shifting Twisted Machinery released Mak. Light Armor Plating 8562 | -10/Subcaves | Disturbed a concealed Subdweller 8570 | -10/Subcaves | Core integrity fell below 50% 8862 | -10/Subcaves | Disturbed a concealed Subdweller 10251 | -10/Subcaves | Shifting Twisted Machinery released Sub. Monowheel 10271 | -10/Subcaves | Shifting Twisted Machinery released Sub. Monowheel 10553 | -10/Subcaves | A swath of the cavern ceiling suddenly collapsed 14189 | -10/Subcaves | Visited 4L-MR0's lab 14330 | -10/Subcaves | Found Cargo Legs 14331 | -10/Subcaves | Attached Cargo Legs, gained temporary slots: Utility x2 14740 | -10/Subcaves | A swath of the cavern ceiling suddenly collapsed 15536 | -10/Subcaves | Ambushed by Subdweller buried in earth 15578 | -10/Subcaves | Lost 3 parts (2u1w) 15593 | -10/Subcaves | Core integrity fell below 20% 15614 | -10/Subcaves | Destroyed by 37-H0Y(R) with Subdweller Shrapnel Launcher Last Messages --------------- 15549_ The unstable cave ceiling collapses. 15553_ BB-36Q(R) destroyed. 15554_ The unstable cave ceiling collapses. 15559_ Subatomizers dissect the Sub. Machine Gun. 15559_ Acquired 22 matter. 15560_ The unstable cave ceiling collapses. 15561_ Sub. Machine Gun crushed. 15565_ The unstable cave ceiling collapses. 15574_ Subatomizers dissect the Sub. Monowheel. 15582_ The unstable cave ceiling collapses. 15589_ Subatomizers dissect the Sub. Monowheel. 15593_ 0O-LEI(R) destroyed. 15596_ The unstable cave ceiling collapses. [Achievement: Remodeling] 15603_ The unstable cave ceiling collapses. 15604_ Subatomizers dissect the Sub. Monowheel. 15604_ The unstable cave ceiling collapses. 37-H0Y(R) emerges from concealment. 15611_ The unstable cave ceiling collapses. Map ----- +----------------------------------------------------+ | ?# ### ### # #???????? | | ?## ##?## ##?# ## ####????? | | ??# ##???####??? ## #????? | | ?## ######???????????# ####### #????? | | ?# #?????######??????###?????## #????? | | ?### ##????## #??????#####??# [ ##???? | | ??## ##?????# ^ ##?#### #### % #???? | | ??# #### #???????# ^ ### # ## & ###???? | | ??# ##?###????????# ^ # ##?????? | | ?## ##????????????# ^ ## ###??????? | | ?# ####???????### & ####????????? | | ?## #???????# #???????????? | | ??# #???????## #???????????? | | ??# #???????# "#?????????? | | ??# ###???????## """#????????? | | ??# #?????????# # # ""#????????? | | ??# #????????# ## RR "#????????? | | ??# ##?????????## ?" #????????? | | ??# ###?####???# = ??# #???????? | | ??# # # #?### #????# #???????? | | ??## #???## # #????? ???????? | | ??## ##??##; #??????#"???????? | | ?## ## # ## ####; ; #???????????????? | | ?# #?##?#???##;; #???????????????? | | ?### ### # # #???????????????? | | ??## ## @ #???????????????? | | ### ## ??# ##???????????????? | | #& # ??### ; #????????????????? | | &!& # ##???## ;###????????????????? | | &==& # ####### ;???????????????????? | | [!! # # #### #??????????????????? | | #&[ #?# ;; ;#??????????????????? | | # #?## ## ??##???????????????????? | | ### # #??###?####???????????????????????? | | ??###### #?????????????????????????????????? | | ???????## ## ##?????????????????????????????????? | | ????????# #?? #?????????????????????????????????? | | ???????## #?? #?????????????????????????????????? | | ???????# ## ##?????????????????????????????????? | | ???????## # #?????????????????????????????????? | | ???????# #?????????????????????????????????? | | ???????## #?????????????????????????????????? | | ???????## # ##?????????????????????????????????? | | ???????# # #?????????????????????????????????? | | ???????# ##?????????????????????????????????? | | ???????# ## ##??????????????????????????????????? | | ??????## # #???????????????????????????????????? | | ??????# #? #??????????????????????????????????? | | ??????## "#? #??????????????????????????????????? | | ???????# ##?? ??????????????????????????????????? | +----------------------------------------------------+ Best States ------------- Heat Dissipation 25 Energy Generation 15 Energy Capacity 250 Matter Stores 300 Matter Capacity 300 Sight Range 16 Robot Scan Range 14 Terrain Scan Density 10 Armor Coverage 300 Evasion (%) 40 Recoil Reduction 2 Item Schematics ----------------- Lgt. Armor Plating | -10/Materials | Hacked Flight Unit | -10/Materials | Hacked Robot Schematics ------------------ None Fabricated ------------ Nothing Alien Tech Used ----------------- None Achievements -------------- Packrat Remodeling Challenges ------------ None Game ------ Seed SpectralReactionDerivative Manual? 0 Play Time 00:31:34 Cumulative 8.2 hours Start 2024.04.17 @ 17:59:01 End 2024.04.17 @ 18:30:33 Sessions 1 Manual Loads 0 Difficulty Rogue Special Mode None Game No. 16 Rogue 16 Adventurer 0 Explorer 0 Win Type - Total 0 Types 0/0/0/0/0/0/0/0/0 Lore% 5 Gallery% 15 Achievement% 15 Wizard Run 0 Options --------- Layout 1 ASCII 0 Keyboard 0 Movement Mouse Keybinds 0 Fullscreen 1 Font 24/Terminus Map View 50x35 Zoom Use 0% Tactical HUD 1 Map Filters NONE Filters NONE Steam 1 RUN: b5e464f7-af71-49fe-9a55-18c37708747a